[Event "TOP 12 FEMININ 2022 - Phase 1"]
[Site "MULHOUSE, France"]
[Date "2022.04.08"]
[Round "2.10"]
[White "BOUTANT 608, Jade"]
[Black "NAVROTESCU  MUL, Andreea"]
[Result "0-1"]
[TimeControl "90 min +30 secondes par coup"]
[WhiteElo "1700"]
[BlackElo "2275"]

1. d4 {[%clk 01:30:57]} {[%emt 00:00:02]} d5 {[%clk 01:30:53]} {[%emt
00:00:08]} 2. Bf4 {[%clk 01:31:21]} {[%emt 00:00:05]} c5 {[%clk 01:31:09]}
{[%emt 00:00:14]} 3. e3 {[%clk 01:31:31]} {[%emt 00:00:20]} Nc6 {[%clk
01:31:22]} {[%emt 00:00:17]} 4. c3 {[%clk 01:31:09]} {[%emt 00:00:52]} Nf6
{[%clk 01:30:31]} {[%emt 00:01:21]} 5. Nd2 {[%clk 01:30:41]} {[%emt 00:00:58]}
e6 {[%clk 01:30:38]} {[%emt 00:00:24]} 6. Ngf3 {[%clk 01:30:40]} {[%emt
00:00:31]} cxd4 {[%clk 01:30:49]} {[%emt 00:00:19]} 7. exd4 {[%clk 01:30:30]}
{[%emt 00:00:39]} Nh5 {[%clk 01:31:09]} {[%emt 00:00:10]} 8. Bg3 {[%clk
01:30:28]} {[%emt 00:00:33]} Nxg3 {[%clk 01:30:56]} {[%emt 00:00:42]} 9. hxg3
{[%clk 01:30:08]} {[%emt 00:00:50]} g6 {[%clk 01:28:46]} {[%emt 00:02:40]} 10.
Bd3 {[%clk 01:28:10]} {[%emt 00:02:27]} Bg7 {[%clk 01:28:57]} {[%emt 00:00:20]}
11. Qe2 {[%clk 01:16:29]} {[%emt 00:12:12]} a6 {[%clk 01:23:11]} {[%emt
00:06:14]} 12. Ne5 {[%clk 01:04:17]} {[%emt 00:12:43]} Nxe5 {[%clk 01:21:31]}
{[%emt 00:02:10]} 13. dxe5 {[%clk 01:04:23]} {[%emt 00:00:25]} Qc7 {[%clk
01:21:12]} {[%emt 00:00:47]} 14. f4 {[%clk 01:03:22]} {[%emt 00:01:32]} Bd7
{[%clk 01:18:03]} {[%emt 00:03:39]} 15. Nf3 {[%clk 01:02:28]} {[%emt 00:01:24]}
b5 {[%clk 01:16:04]} {[%emt 00:02:29]} 16. O-O {[%clk 00:53:03]} {[%emt
00:09:55]} O-O {[%clk 01:15:39]} {[%emt 00:00:55]} 17. Rac1 {[%clk 00:47:27]}
{[%emt 00:06:06]} Rfc8 {[%clk 01:11:44]} {[%emt 00:04:24]} 18. a3 {[%clk
00:43:14]} {[%emt 00:04:44]} a5 {[%clk 01:09:48]} {[%emt 00:02:26]} 19. Kh2
{[%clk 00:41:29]} {[%emt 00:02:15]} Qb6 {[%clk 01:08:57]} {[%emt 00:01:21]} 20.
Qd2 {[%clk 00:39:25]} {[%emt 00:02:33]} Bf8 {[%clk 01:06:37]} {[%emt 00:02:51]}
21. b4 {[%clk 00:30:18]} {[%emt 00:09:37]} axb4 {[%clk 01:06:46]} {[%emt
00:00:22]} 22. axb4 {[%clk 00:30:36]} {[%emt 00:00:12]} Ra3 {[%clk 01:07:01]}
{[%emt 00:00:14]} 23. Qb2 {[%clk 00:24:38]} {[%emt 00:06:27]} Rca8 {[%clk
01:05:46]} {[%emt 00:01:46]} 24. Ra1 {[%clk 00:21:40]} {[%emt 00:03:28]} R3a4
{[%clk 00:59:13]} {[%emt 00:07:04]} 25. Bc2 {[%clk 00:16:35]} {[%emt 00:05:35]}
R4a6 {[%clk 00:50:41]} {[%emt 00:09:01]} 26. Rxa6 {[%clk 00:16:18]} {[%emt
00:00:47]} Qxa6 {[%clk 00:50:18]} {[%emt 00:00:53]} 27. Bd3 {[%clk 00:10:41]}
{[%emt 00:06:08]} Qa3 {[%clk 00:49:46]} {[%emt 00:01:01]} 28. Qd2 {[%clk
00:07:00]} {[%emt 00:04:06]} Rc8 {[%clk 00:50:00]} {[%emt 00:00:21]} 29. Qe2
{[%clk 00:03:17]} {[%emt 00:04:13]} Rxc3 {[%clk 00:50:02]} {[%emt 00:00:28]} 30.
Bxb5 {[%clk 00:02:58]} {[%emt 00:00:49]} Re3 {[%clk 00:50:20]} {[%emt
00:00:12]} 31. Qc2 {[%clk 00:01:05]} {[%emt 00:02:23]} Bxb5 {[%clk 00:50:40]}
{[%emt 00:00:10]} 32. Qc7 {[%clk 00:00:42]} {[%emt 00:00:53]} h6 {[%clk
00:48:14]} {[%emt 00:02:56]} 33. Rc1 {[%clk 00:00:36]} {[%emt 00:00:36]} Bc4
{[%clk 00:47:35]} {[%emt 00:01:09]} 34. b5 {[%clk 00:00:32]} {[%emt 00:00:35]}
Qxc1 {[%clk 00:47:28]} {[%emt 00:00:37]} 35. b6 {[%clk 00:00:39]} {[%emt
00:00:23]} Rb3 {[%clk 00:47:28]} {[%emt 00:00:29]} 36. Nd4 {[%clk 00:00:33]}
{[%emt 00:00:37]} Rb1 {[%clk 00:47:44]} {[%emt 00:00:13]} 0-1

[Event "TOP 12 FEMININ 2022 - Phase 1"]
[Site "MULHOUSE, France"]
[Date "2022.04.08"]
[Round "2.11"]
[White "HAUSSERNOT  MUL, Cecile"]
[Black "CORIAT 608, Caroline"]
[Result "1-0"]
[TimeControl "90 min +30 secondes par coup"]
[WhiteElo "2108"]
[BlackElo "1765"]

1. e4 {[%clk 01:30:55]} {[%emt 00:00:04]} e6 {[%clk 01:30:52]} {[%emt
00:00:09]} 2. d4 {[%clk 01:30:34]} {[%emt 00:00:51]} d5 {[%clk 01:31:16]}
{[%emt 00:00:06]} 3. Nc3 {[%clk 01:30:50]} {[%emt 00:00:13]} Nf6 {[%clk
01:31:10]} {[%emt 00:00:36]} 4. Bg5 {[%clk 01:30:47]} {[%emt 00:00:33]} Be7
{[%clk 01:29:50]} {[%emt 00:01:50]} 5. e5 {[%clk 01:31:05]} {[%emt 00:00:13]}
Nfd7 {[%clk 01:30:13]} {[%emt 00:00:07]} 6. h4 {[%clk 01:30:54]} {[%emt
00:00:41]} a6 {[%clk 01:30:31]} {[%emt 00:00:12]} 7. Qg4 {[%clk 01:28:45]}
{[%emt 00:02:39]} Kf8 {[%clk 01:21:16]} {[%emt 00:09:45]} 8. Nh3 {[%clk
01:27:54]} {[%emt 00:01:20]} c5 {[%clk 01:15:06]} {[%emt 00:06:41]} 9. dxc5
{[%clk 01:27:23]} {[%emt 00:01:01]} Nxe5 {[%clk 01:08:49]} {[%emt 00:06:47]} 10.
Qg3 {[%clk 01:27:25]} {[%emt 00:00:27]} Ned7 {[%clk 01:01:44]} {[%emt
00:07:35]} 11. O-O-O {[%clk 01:25:13]} {[%emt 00:02:43]} Nf6 {[%clk 00:56:13]}
{[%emt 00:06:01]} 12. Nf4 {[%clk 01:19:14]} {[%emt 00:06:28]} Nc6 {[%clk
00:46:27]} {[%emt 00:10:15]} 13. h5 {[%clk 01:07:35]} {[%emt 00:12:09]} Qa5
{[%clk 00:38:53]} {[%emt 00:08:03]} 14. h6 {[%clk 01:07:20]} {[%emt 00:00:47]}
g6 {[%clk 00:38:42]} {[%emt 00:00:41]} 15. Qh4 {[%clk 01:04:35]} {[%emt
00:03:15]} d4 {[%clk 00:29:18]} {[%emt 00:09:54]} 16. Bxf6 {[%clk 01:02:17]}
{[%emt 00:02:48]} dxc3 {[%clk 00:29:29]} {[%emt 00:00:19]} 17. Bxe7+ {[%clk
00:58:02]} {[%emt 00:04:45]} Nxe7 {[%clk 00:29:34]} {[%emt 00:00:23]} 18. Qf6
{[%clk 00:58:18]} {[%emt 00:00:15]} cxb2+ {[%clk 00:28:35]} {[%emt 00:01:30]}
19. Kb1 {[%clk 00:58:29]} {[%emt 00:00:19]} Rg8 {[%clk 00:28:22]} {[%emt
00:00:42]} 20. Qc3 {[%clk 00:58:11]} {[%emt 00:00:48]} Qc7 {[%clk 00:27:04]}
{[%emt 00:01:48]} 21. Qe5 {[%clk 00:58:22]} {[%emt 00:00:20]} Qa5 {[%clk
00:25:44]} {[%emt 00:01:49]} 22. c6 {[%clk 00:55:59]} {[%emt 00:02:53]} b5
{[%clk 00:20:07]} {[%emt 00:06:08]} 23. c7 {[%clk 00:55:44]} {[%emt 00:00:44]}
Bb7 {[%clk 00:16:32]} {[%emt 00:04:06]} 24. Qc3 {[%clk 00:54:34]} {[%emt
00:01:40]} Qb6 {[%clk 00:15:49]} {[%emt 00:01:12]} 25. Qc5 {[%clk 00:54:37]}
{[%emt 00:00:28]} Qa5 {[%clk 00:15:26]} {[%emt 00:00:52]} 26. Rh3 {[%clk
00:54:30]} {[%emt 00:00:36]} Bd5 {[%clk 00:15:00]} {[%emt 00:00:57]} 27. Nxd5
{[%clk 00:53:57]} {[%emt 00:01:04]} exd5 {[%clk 00:15:27]} {[%emt 00:00:03]} 28.
Re3 {[%clk 00:53:56]} {[%emt 00:00:31]} Re8 {[%clk 00:15:08]} {[%emt 00:00:48]}
29. Qxe7+ {[%clk 00:54:09]} {[%emt 00:00:17]} Rxe7 {[%clk 00:15:36]} {[%emt
00:00:03]} 30. c8=Q+ {[%clk 00:54:28]} {[%emt 00:00:11]} Re8 {[%clk 00:16:02]}
{[%emt 00:00:03]} 31. Rxe8# {[%clk 00:54:49]} {[%emt 00:00:09]} 1-0

[Event "TOP 12 FEMININ 2022 - Phase 1"]
[Site "MULHOUSE, France"]
[Date "2022.04.08"]
[Round "2.12"]
[White "PAROT DE SOUSA  608, Sophie"]
[Black "SCHEBACHER MUL, Solene"]
[Result "0-1"]
[TimeControl "90 min +30 secondes par coup"]
[WhiteElo "1416"]
[BlackElo "1746"]

1. c4 {[%clk 01:30:56]} {[%emt 00:00:03]} e5 {[%clk 01:30:44]} {[%emt
00:00:16]} 2. g3 {[%clk 01:31:10]} {[%emt 00:00:17]} Nf6 {[%clk 01:29:46]}
{[%emt 00:01:27]} 3. Bg2 {[%clk 01:29:20]} {[%emt 00:02:20]} Nc6 {[%clk
01:28:34]} {[%emt 00:01:41]} 4. b3 {[%clk 01:22:29]} {[%emt 00:07:22]} Bc5
{[%clk 01:23:24]} {[%emt 00:05:39]} 5. e3 {[%clk 01:13:13]} {[%emt 00:09:48]}
e4 {[%clk 01:07:37]} {[%emt 00:16:16]} 6. d4 {[%clk 00:54:16]} {[%emt
00:19:28]} exd3 {[%clk 01:02:01]} {[%emt 00:06:05]} 7. Qxd3 {[%clk 00:50:57]}
{[%emt 00:03:49]} Ne5 {[%clk 00:51:03]} {[%emt 00:11:28]} 8. Qd1 {[%clk
00:44:37]} {[%emt 00:06:51]} Bb4+ {[%clk 00:45:20]} {[%emt 00:06:11]} 9. Bd2
{[%clk 00:39:40]} {[%emt 00:05:28]} Nd3+ {[%clk 00:43:21]} {[%emt 00:02:29]} 10.
Ke2 {[%clk 00:37:12]} {[%emt 00:02:59]} Ng4 {[%clk 00:37:58]} {[%emt 00:05:52]}
11. Nh3 {[%clk 00:21:05]} {[%emt 00:16:38]} Bxd2 {[%clk 00:20:25]} {[%emt
00:18:02]} 12. Nxd2 {[%clk 00:14:51]} {[%emt 00:06:44]} Nde5 {[%clk 00:17:14]}
{[%emt 00:03:41]} 13. f4 {[%clk 00:11:42]} {[%emt 00:03:39]} Nc6 {[%clk
00:16:18]} {[%emt 00:01:25]} 14. Nf2 {[%clk 00:10:18]} {[%emt 00:01:55]} d6
{[%clk 00:11:07]} {[%emt 00:05:41]} 15. h3 {[%clk 00:06:11]} {[%emt 00:04:37]}
Nf6 {[%clk 00:06:32]} {[%emt 00:05:05]} 16. Nfe4 {[%clk 00:03:57]} {[%emt
00:02:44]} h5 {[%clk 00:03:29]} {[%emt 00:03:33]} 17. Nxf6+ {[%clk 00:03:39]}
{[%emt 00:00:48]} Qxf6 {[%clk 00:03:52]} {[%emt 00:00:07]} 18. Re1 {[%clk
00:02:46]} {[%emt 00:01:23]} Qg6 {[%clk 00:03:08]} {[%emt 00:01:13]} 19. Kf2
{[%clk 00:02:45]} {[%emt 00:00:32]} Bd7 {[%clk 00:02:17]} {[%emt 00:01:21]} 20.
Nf3 {[%clk 00:02:37]} {[%emt 00:00:38]} O-O-O {[%clk 00:01:52]} {[%emt
00:00:55]} 21. Qd2 {[%clk 00:02:06]} {[%emt 00:01:01]} f6 {[%clk 00:01:45]}
{[%emt 00:00:37]} 22. Nd4 {[%clk 00:02:09]} {[%emt 00:00:27]} Nxd4 {[%clk
00:02:05]} {[%emt 00:00:10]} 23. Qxd4 {[%clk 00:01:53]} {[%emt 00:00:46]} Kb8
{[%clk 00:02:30]} {[%emt 00:00:05]} 24. Rad1 {[%clk 00:01:53]} {[%emt
00:00:31]} f5 {[%clk 00:02:25]} {[%emt 00:00:34]} 25. e4 {[%clk 00:01:32]}
{[%emt 00:00:52]} h4 {[%clk 00:02:37]} {[%emt 00:00:18]} 26. Qe3 {[%clk
00:01:26]} {[%emt 00:00:36]} fxe4 {[%clk 00:02:57]} {[%emt 00:00:10]} 27. Bxe4
{[%clk 00:01:45]} {[%emt 00:00:11]} Qxg3+ {[%clk 00:03:21]} {[%emt 00:00:05]}
28. Qxg3 {[%clk 00:02:05]} {[%emt 00:00:11]} hxg3+ {[%clk 00:03:46]} {[%emt
00:00:05]} 29. Kxg3 {[%clk 00:02:24]} {[%emt 00:00:11]} Rxh3+ {[%clk 00:04:10]}
{[%emt 00:00:06]} 30. Kg2 {[%clk 00:02:45]} {[%emt 00:00:08]} Rdh8 {[%clk
00:04:08]} {[%emt 00:00:32]} 31. Rh1 {[%clk 00:02:11]} {[%emt 00:01:04]} Rxh1
{[%clk 00:03:32]} {[%emt 00:01:06]} 32. Rxh1 {[%clk 00:02:38]} {[%emt
00:00:03]} Rxh1 {[%emt 00:00:07]} 33. Kxh1 {[%clk 00:03:06]} {[%emt 00:00:02]}
Bc6 {[%clk 00:04:18]} {[%emt 00:00:07]} 34. Bg2 {[%clk 00:01:27]} {[%emt
00:02:09]} Bxg2+ {[%clk 00:04:36]} {[%emt 00:00:12]} 35. Kxg2 {[%clk 00:01:55]}
{[%emt 00:00:02]} c6 {[%clk 00:04:28]} {[%emt 00:00:38]} 36. Kf3 {[%clk
00:02:16]} {[%emt 00:00:09]} d5 {[%clk 00:04:30]} {[%emt 00:00:28]} 37. Ke3
{[%clk 00:01:29]} {[%emt 00:01:18]} Kc7 {[%clk 00:04:31]} {[%emt 00:00:28]} 38.
c5 {[%clk 00:01:02]} {[%emt 00:00:58]} Kd7 {[%clk 00:04:01]} {[%emt 00:00:59]}
39. Kd4 {[%clk 00:01:04]} {[%emt 00:00:28]} Ke6 {[%clk 00:04:24]} {[%emt
00:00:07]} 40. a4 {[%clk 00:00:56]} {[%emt 00:00:38]} Kf5 {[%clk 00:04:39]}
{[%emt 00:00:15]} 41. Ke3 {[%clk 00:01:03]} {[%emt 00:00:22]} d4+ {[%clk
00:04:38]} {[%emt 00:00:32]} 42. Kxd4 {[%clk 00:00:40]} {[%emt 00:00:53]} Kxf4
{[%clk 00:05:03]} {[%emt 00:00:04]} 43. Kd3 {[%clk 00:01:03]} {[%emt 00:00:08]}
Kf3 {[%clk 00:05:25]} {[%emt 00:00:08]} 44. b4 {[%clk 00:01:08]} {[%emt
00:00:25]} g5 {[%clk 00:05:49]} {[%emt 00:00:07]} 45. b5 {[%clk 00:01:35]}
{[%emt 00:00:02]} g4 {[%clk 00:06:08]} {[%emt 00:00:10]} 46. bxc6 {[%clk
00:00:43]} {[%emt 00:01:23]} bxc6 {[%clk 00:06:31]} {[%emt 00:00:07]} 47. Kc4
{[%clk 00:00:53]} {[%emt 00:00:20]} g3 {[%clk 00:06:54]} {[%emt 00:00:07]} 48.
Kb4 {[%clk 00:01:19]} {[%emt 00:00:05]} g2 {[%clk 00:07:13]} {[%emt 00:00:10]}
49. Ka5 {[%clk 00:01:31]} {[%emt 00:00:18]} g1=Q {[%clk 00:07:24]} {[%emt
00:00:19]} 50. Ka6 {[%clk 00:01:48]} {[%emt 00:00:13]} Qxc5 {[%clk 00:07:44]}
{[%emt 00:00:10]} 51. a5 {[%emt 00:00:22]} Qb5+ {[%clk 00:08:03]} {[%emt
00:00:10]} 52. Kxa7 {[%clk 00:02:05]} {[%emt 00:00:22]} Qxa5+ {[%clk 00:08:26]}
{[%emt 00:00:07]} 53. Kb7 {[%clk 00:02:28]} {[%emt 00:00:08]} c5 {[%clk
00:08:37]} {[%emt 00:00:18]} 0-1

[Event "TOP 12 FEMININ 2022 - Phase 1"]
[Site "MULHOUSE, France"]
[Date "2022.04.08"]
[Round "2.13"]
[White "TERRAZZONI  DOM, Claire"]
[Black "SEBAG  BIS, Marie"]
[Result "0-1"]
[TimeControl "90 min +30 secondes par coup"]
[WhiteElo "1794"]
[BlackElo "2461"]

1. e4 {[%clk 01:30:44]} {[%emt 00:00:14]} c5 {[%clk 01:30:54]} {[%emt
00:00:07]} 2. Nf3 {[%clk 01:30:40]} {[%emt 00:00:34]} d6 {[%clk 01:31:17]}
{[%emt 00:00:07]} 3. d4 {[%clk 01:31:00]} {[%emt 00:00:10]} cxd4 {[%clk
01:31:34]} {[%emt 00:00:13]} 4. Nxd4 {[%clk 01:31:23]} {[%emt 00:00:07]} Nf6
{[%clk 01:31:59]} {[%emt 00:00:05]} 5. Nc3 {[%clk 01:31:07]} {[%emt 00:00:46]}
a6 {[%clk 01:32:24]} {[%emt 00:00:05]} 6. h3 {[%clk 01:29:00]} {[%emt
00:02:37]} e5 {[%clk 01:31:36]} {[%emt 00:01:17]} 7. Nde2 {[%clk 01:23:42]}
{[%emt 00:05:47]} h5 {[%clk 01:29:06]} {[%emt 00:03:01]} 8. g3 {[%clk
01:23:03]} {[%emt 00:01:09]} Be6 {[%clk 01:26:33]} {[%emt 00:03:03]} 9. Bg2
{[%clk 01:20:34]} {[%emt 00:02:59]} Nbd7 {[%clk 01:20:11]} {[%emt 00:06:53]} 10.
Be3 {[%clk 01:14:08]} {[%emt 00:06:56]} Be7 {[%clk 01:12:42]} {[%emt 00:07:59]}
11. O-O {[%clk 01:11:14]} {[%emt 00:03:23]} Rc8 {[%clk 01:08:22]} {[%emt
00:04:50]} 12. Nd5 {[%clk 01:02:39]} {[%emt 00:09:05]} Nxd5 {[%clk 01:01:28]}
{[%emt 00:07:25]} 13. exd5 {[%clk 01:02:58]} {[%emt 00:00:11]} Bf5 {[%clk
01:01:54]} {[%emt 00:00:04]} 14. c3 {[%clk 00:57:10]} {[%emt 00:06:18]} h4
{[%clk 00:42:04]} {[%emt 00:20:19]} 15. g4 {[%clk 00:42:14]} {[%emt 00:15:27]}
Bh7 {[%clk 00:41:45]} {[%emt 00:00:48]} 16. f4 {[%clk 00:37:10]} {[%emt
00:05:35]} exf4 {[%clk 00:40:22]} {[%emt 00:01:53]} 17. Bd4 {[%clk 00:30:26]}
{[%emt 00:07:14]} f3 {[%clk 00:34:07]} {[%emt 00:06:45]} 18. Bxf3 {[%clk
00:27:09]} {[%emt 00:03:47]} O-O {[%clk 00:34:13]} {[%emt 00:00:23]} 19. Nf4
{[%clk 00:24:42]} {[%emt 00:02:57]} Bf6 {[%clk 00:33:38]} {[%emt 00:01:06]} 20.
Ng2 {[%clk 00:14:42]} {[%emt 00:10:30]} Ne5 {[%clk 00:26:20]} {[%emt 00:07:49]}
21. Ne3 {[%clk 00:08:05]} {[%emt 00:07:07]} Nxf3+ {[%clk 00:09:09]} {[%emt
00:17:40]} 22. Rxf3 {[%clk 00:07:59]} {[%emt 00:00:36]} Bxd4 {[%clk 00:09:11]}
{[%emt 00:00:28]} 23. Qxd4 {[%clk 00:08:00]} {[%emt 00:00:28]} Qe7 {[%clk
00:09:13]} {[%emt 00:00:28]} 24. Nf5 {[%clk 00:06:08]} {[%emt 00:02:22]} Bxf5
{[%clk 00:09:34]} {[%emt 00:00:09]} 25. Rxf5 {[%clk 00:03:54]} {[%emt
00:02:45]} Rce8 {[%clk 00:09:36]} {[%emt 00:00:28]} 26. Rh5 {[%clk 00:02:26]}
{[%emt 00:01:59]} Qe2 {[%clk 00:08:12]} {[%emt 00:01:53]} 27. Qf2 {[%clk
00:01:48]} {[%emt 00:01:08]} Qxf2+ {[%clk 00:05:23]} {[%emt 00:03:19]} 28. Kxf2
{[%clk 00:02:13]} {[%emt 00:00:04]} Re4 {[%clk 00:03:55]} {[%emt 00:01:59]} 29.
Re1 {[%clk 00:01:13]} {[%emt 00:01:30]} Rxe1 {[%clk 00:03:14]} {[%emt
00:01:11]} 30. Kxe1 {[%clk 00:01:39]} {[%emt 00:00:03]} Re8+ {[%clk 00:03:25]}
{[%emt 00:00:20]} 31. Kf2 {[%clk 00:01:55]} {[%emt 00:00:14]} g6 {[%clk
00:03:14]} {[%emt 00:00:41]} 32. Rxh4 {[%clk 00:01:03]} {[%emt 00:01:22]} Re4
{[%clk 00:03:27]} {[%emt 00:00:17]} 33. Kf3 {[%clk 00:00:49]} {[%emt 00:00:44]}
Ra4 {[%clk 00:02:18]} {[%emt 00:01:39]} 34. a3 {[%clk 00:00:53]} {[%emt
00:00:26]} Rc4 {[%clk 00:01:26]} {[%emt 00:01:22]} 35. Ke3 {[%clk 00:00:40]}
{[%emt 00:00:42]} Kg7 {[%clk 00:01:22]} {[%emt 00:00:34]} 36. Kd3 {[%clk
00:00:45]} {[%emt 00:00:26]} b5 {[%clk 00:01:26]} {[%emt 00:00:26]} 37. b3
{[%clk 00:00:42]} {[%emt 00:00:33]} Rf4 {[%clk 00:01:50]} {[%emt 00:00:06]} 38.
Ke3 {[%clk 00:00:54]} {[%emt 00:00:19]} g5 {[%clk 00:01:55]} {[%emt 00:00:23]}
39. Rh5 {[%clk 00:01:14]} {[%emt 00:00:11]} f6 {[%clk 00:02:19]} {[%emt
00:00:06]} 40. Ke2 {[%clk 00:01:00]} {[%emt 00:00:44]} a5 {[%clk 00:02:28]}
{[%emt 00:00:21]} 41. b4 {[%clk 00:00:36]} {[%emt 00:00:54]} a4 {[%clk
00:02:50]} {[%emt 00:00:08]} 42. Ke3 {[%clk 00:00:34]} {[%emt 00:00:32]} Rf1
{[%clk 00:02:31]} {[%emt 00:00:50]} 43. h4 {[%clk 00:00:37]} {[%emt 00:00:26]}
gxh4 {[%clk 00:02:53]} {[%emt 00:00:07]} 44. Rxh4 {[%clk 00:01:00]} {[%emt
00:00:08]} Ra1 {[%clk 00:03:20]} {[%emt 00:00:03]} 45. Kd4 {[%clk 00:01:00]}
{[%emt 00:00:29]} Rxa3 {[%clk 00:03:41]} {[%emt 00:00:10]} 46. Rh2 {[%clk
00:00:38]} {[%emt 00:00:51]} Ra1 {[%clk 00:03:04]} {[%emt 00:01:06]} 47. Re2
{[%clk 00:00:43]} {[%emt 00:00:26]} Rd1+ {[%clk 00:03:01]} {[%emt 00:00:34]} 48.
Ke4 {[%clk 00:00:46]} {[%emt 00:00:27]} Kg6 {[%clk 00:03:15]} {[%emt 00:00:16]}
49. Rf2 {[%clk 00:00:32]} {[%emt 00:00:44]} Re1+ {[%clk 00:02:59]} {[%emt
00:00:45]} 50. Kd4 {[%clk 00:00:41]} {[%emt 00:00:22]} Rg1 {[%clk 00:03:00]}
{[%emt 00:00:27]} 51. Rf4 {[%clk 00:00:39]} {[%emt 00:00:34]} Rg2 {[%clk
00:02:13]} {[%emt 00:01:17]} 52. Kd3 {[%clk 00:00:37]} {[%emt 00:00:32]} a3
{[%clk 00:01:56]} {[%emt 00:00:47]} 53. Rf1 {[%clk 00:00:40]} {[%emt 00:00:27]}
a2 {[%clk 00:01:59]} {[%emt 00:00:27]} 54. Ra1 {[%clk 00:00:33]} {[%emt
00:00:36]} Rb2 {[%clk 00:02:14]} {[%emt 00:00:15]} 55. Ke3 {[%clk 00:00:34]}
{[%emt 00:00:29]} Kg5 {[%clk 00:02:38]} {[%emt 00:00:08]} 56. Kf3 {[%clk
00:00:35]} {[%emt 00:00:28]} Rc2 {[%clk 00:02:51]} {[%emt 00:00:17]} 57. Kg3
{[%clk 00:00:32]} {[%emt 00:00:33]} Rxc3+ {[%clk 00:03:05]} {[%emt 00:00:16]}
58. Kf2 {[%clk 00:00:55]} {[%emt 00:00:06]} Ra3 {[%clk 00:03:25]} {[%emt
00:00:10]} 59. Ke2 {[%clk 00:01:00]} {[%emt 00:00:26]} Kxg4 {[%clk 00:03:42]}
{[%emt 00:00:13]} 60. Kd2 {[%clk 00:01:17]} {[%emt 00:00:13]} Kf3 {[%clk
00:02:42]} {[%emt 00:01:30]} 61. Kc2 {[%clk 00:01:19]} {[%emt 00:00:27]} Ke2
{[%clk 00:02:56]} {[%emt 00:00:16]} 62. Kb2 {[%clk 00:01:16]} {[%emt 00:00:34]}
Ra8 {[%clk 00:03:18]} {[%emt 00:00:07]} 63. Kb3 {[%clk 00:00:41]} {[%emt
00:01:05]} f5 {[%clk 00:03:40]} {[%emt 00:00:08]} 0-1

[Event "TOP 12 FEMININ 2022 - Phase 1"]
[Site "MULHOUSE, France"]
[Date "2022.04.08"]
[Round "2.14"]
[White "JAVAKHISHVILI  BIS, Lela"]
[Black "LE MAREC  DOM, Laura"]
[Result "1-0"]
[TimeControl "90 min +30 secondes par coup"]
[WhiteElo "2482"]
[BlackElo "1770"]

1. Nf3 {[%clk 01:30:55]} {[%emt 00:00:03]} d5 {[%clk 01:30:39]} {[%emt
00:00:22]} 2. d4 {[%clk 01:31:14]} {[%emt 00:00:11]} Nf6 {[%clk 01:30:21]}
{[%emt 00:00:48]} 3. c4 {[%clk 01:31:32]} {[%emt 00:00:12]} e6 {[%clk
01:29:30]} {[%emt 00:01:22]} 4. Nc3 {[%clk 01:31:41]} {[%emt 00:00:20]} Be7
{[%clk 01:25:29]} {[%emt 00:04:31]} 5. Bf4 {[%clk 01:31:22]} {[%emt 00:00:50]}
O-O {[%clk 01:22:43]} {[%emt 00:03:15]} 6. e3 {[%clk 01:31:45]} {[%emt
00:00:07]} a6 {[%clk 01:12:00]} {[%emt 00:11:13]} 7. cxd5 {[%clk 01:31:40]}
{[%emt 00:00:35]} exd5 {[%clk 01:11:47]} {[%emt 00:00:43]} 8. Bd3 {[%clk
01:31:42]} {[%emt 00:00:27]} c5 {[%clk 01:06:06]} {[%emt 00:06:12]} 9. dxc5
{[%clk 01:31:20]} {[%emt 00:00:52]} Nc6 {[%clk 01:03:04]} {[%emt 00:03:32]} 10.
O-O {[%clk 01:28:53]} {[%emt 00:02:57]} Bxc5 {[%clk 01:01:38]} {[%emt
00:01:56]} 11. Rc1 {[%clk 01:28:08]} {[%emt 00:01:15]} Ba7 {[%clk 00:53:56]}
{[%emt 00:08:12]} 12. Bg5 {[%clk 01:25:01]} {[%emt 00:03:37]} Be6 {[%clk
00:46:32]} {[%emt 00:07:54]} 13. Ne2 {[%clk 01:20:24]} {[%emt 00:05:06]} Rc8
{[%clk 00:41:47]} {[%emt 00:05:16]} 14. Bb1 {[%clk 01:16:35]} {[%emt 00:04:19]}
Bg4 {[%clk 00:30:52]} {[%emt 00:11:25]} 15. Qd3 {[%clk 01:09:12]} {[%emt
00:07:52]} g6 {[%clk 00:19:50]} {[%emt 00:11:33]} 16. Ned4 {[%clk 01:08:02]}
{[%emt 00:01:39]} Bxf3 {[%clk 00:14:30]} {[%emt 00:05:51]} 17. Nxf3 {[%clk
01:06:12]} {[%emt 00:02:20]} Qd6 {[%clk 00:12:33]} {[%emt 00:02:27]} 18. Rcd1
{[%clk 01:01:12]} {[%emt 00:05:29]} Ne5 {[%clk 00:09:04]} {[%emt 00:04:00]} 19.
Qe2 {[%clk 00:59:40]} {[%emt 00:02:01]} Rfe8 {[%clk 00:07:28]} {[%emt
00:02:06]} 20. g3 {[%clk 00:51:03]} {[%emt 00:09:08]} Nc4 {[%clk 00:04:12]}
{[%emt 00:03:47]} 21. b3 {[%clk 00:47:14]} {[%emt 00:04:18]} Na3 {[%clk
00:04:39]} {[%emt 00:00:03]} 22. Qb2 {[%clk 00:43:44]} {[%emt 00:03:59]} Ne4
{[%clk 00:03:38]} {[%emt 00:01:31]} 23. Bxe4 {[%clk 00:42:36]} {[%emt
00:01:39]} Rxe4 {[%clk 00:03:59]} {[%emt 00:00:09]} 24. Bf4 {[%clk 00:40:58]}
{[%emt 00:02:07]} Rxf4 {[%clk 00:01:21]} {[%emt 00:03:09]} 25. exf4 {[%clk
00:40:58]} {[%emt 00:00:29]} Rc2 {[%clk 00:00:52]} {[%emt 00:00:59]} 26. Qe5
{[%clk 00:40:29]} {[%emt 00:00:58]} Qxe5 {[%clk 00:01:03]} {[%emt 00:00:21]} 27.
fxe5 {[%clk 00:40:31]} {[%emt 00:00:28]} Nb5 {[%clk 00:00:50]} {[%emt
00:00:42]} 28. Rxd5 {[%clk 00:40:09]} {[%emt 00:00:53]} Nc3 {[%clk 00:01:13]}
{[%emt 00:00:07]} 29. Rd2 {[%clk 00:38:50]} {[%emt 00:01:48]} Rxd2 {[%clk
00:01:13]} {[%emt 00:00:31]} 30. Nxd2 {[%clk 00:39:18]} {[%emt 00:00:02]} Nxa2
{[%clk 00:01:30]} {[%emt 00:00:12]} 31. Kg2 {[%clk 00:39:22]} {[%emt 00:00:27]}
Nb4 {[%clk 00:01:50]} {[%emt 00:00:10]} 32. Rd1 {[%clk 00:37:30]} {[%emt
00:02:22]} Nc6 {[%clk 00:00:58]} {[%emt 00:01:22]} 33. Nf3 {[%clk 00:36:52]}
{[%emt 00:01:08]} Bb8 {[%clk 00:00:49]} {[%emt 00:00:40]} 34. Rd7 {[%clk
00:37:05]} {[%emt 00:00:15]} b6 {[%clk 00:00:41]} {[%emt 00:00:38]} 35. Rb7
{[%clk 00:37:18]} {[%emt 00:00:17]} Kg7 {[%clk 00:00:45]} {[%emt 00:00:26]} 36.
Rxb6 {[%clk 00:37:26]} {[%emt 00:00:22]} 1-0